Cogmind - Beta 12 @@@ ROGUE MODE // 2023.10.31 @ 12:11:15 Player: OgamiTringle Result: Destroyed by Y-45 Defender with Heavy Assault Rifle Performance ------------- Evolutions (1) 500 Regions Visited (2) 400 Robots Destroyed (9) 45 Value Destroyed (304) 304 Prototype IDs (0) 0 Alien Tech Used (0) 0 Bonus (0) 0 TOTAL SCORE: 1249 Bonus ------- None Cogmind --------- Core Integrity 0/400 Matter 21/300 Energy 100/100 System Corruption 4% Temperature Cool (9) Movement Core (700) Ox13 Location -9/Materials Parts ------- > --- POWER (2) -------- (None) > --- PROPULSION (3) --- (None) > --- UTILITY (2) ------ High-capacity Storage Unit > --- WEAPON (2) ------- (None) > --- INVENTORY (20) --- Light Treads Light Treads Aluminum Leg Large Storage Unit Terrain Scanner Light Assault Rifle Peak State ------------ > --- POWER ------------ Ion Engine Light Ion Engine > --- PROPULSION ------- Aluminum Leg Aluminum Leg Aluminum Leg > --- UTILITY ---------- High-capacity Storage Unit Sensor Array > --- WEAPON ----------- Field Laser Field Laser > --- INVENTORY -------- Light Treads Light Treads Aluminum Leg Terrain Scanner Assault Rifle Light Assault Rifle Grenade Launcher [Rating: 13] Favorites ----------- Power Ion Engine Engine Ion Engine Propulsion Aluminum Leg Leg Aluminum Leg Utility Sensor Array Device Sensor Array Storage Small Storage Unit Weapon EM Pulse Gun Energy Gun EM Pulse Gun Ballistic Gun Assault Rifle Launcher Grenade Launcher Build | -11 -10 -9 ------- Run | Jun Mat Mat Slots Evolved 2 | . . 2 Power 1 | . . 1 Propulsion 1 | . . 1 Utility . | . . . Weapon . | . . . Parts Attached 23 | 6 7 10 Power 2 | 1 . 1 Engine 2 | 1 . 1 Core . | . . . Reactor . | . . . Propulsion 4 | 2 1 1 Treads . | . . . Leg 4 | 2 1 1 Wheel . | . . . Hover . | . . . Flight . | . . . Utility 5 | 1 2 2 Device 1 | . 1 . Storage 4 | 1 1 2 Processor . | . . . Hackware . | . . . Protection . | . . . Artifact . | . . . Weapon 12 | 2 4 6 Energy Gun 4 | 1 . 3 Energy Cannon . | . . . Ballistic Gun 4 | 1 2 1 Ballistic Cannon . | . . . Launcher 4 | . 2 2 Special Weapon . | . . . Impact Weapon . | . . . Slashing Weapon . | . . . Piercing Weapon . | . . . Special Melee Weapon . | . . . Unidentified Prototypes . | . . . Parts Lost 11 | . 1 10 Power 2 | . . 2 Propulsion 3 | . . 3 Utility 1 | . . 1 Weapon 5 | . 1 4 Highest Loss Streak 10 | . 1 10 To Critical Strikes . | . . . Average Slot Usage (%) 86 | . 96 74 Engine 15 | . 14 17 Leg 24 | . 27 19 Device 9 | . 11 7 Storage 12 | . 14 11 Energy Gun 12 | . 12 12 Ballistic Gun 4 | . 5 4 Launcher 6 | . 10 2 Naked Turns . | . . . Heaviest Build 55 | 13 49 55 Greatest Support 30 | 20 20 30 Greatest Overweight (x) 14 | 3 2 14 Average Overweight (x) . | 1 . 2 Largest Inventory Capacity 20 | 8 20 20 Average Capacity 12 | 7 8 19 Most Carried 8 | 8 8 8 Average Carried 5 | 3 5 6 Final Capacity 20 | 8 20 20 Final Carried 7 | 4 7 6 Class Distribution -------------------- 100% | Mutant Dominant Class ---------------- Mutant | -10/Materials Mutant | -9/Materials Resources | -11 -10 -9 ----------- Run | Jun Mat Mat Matter Collected 261 | 259 . 2 Remotely . | . . . Salvage Created 278 | . 139 139 Parts 18 | . 9 9 Haulers Intercepted . | . . . Recyclers Shooed 2 | . . 2 Parts Field Recycled . | . . . Retrieved Matter . | . . . Parts Self-Destructed . | . . . Prevented . | . . . Kills | -11 -10 -9 ------- Run | Jun Mat Mat Combat Hostiles Destroyed 7 | . 3 4 Guns 4 | . 3 1 AOE 3 | . . 3 Classes Destroyed 4 | . 1 3 Builder 1 | . . 1 Tunneler 1 | . . 1 Grunt 6 | . 3 3 Sentry 1 | . . 1 Best Kill Streak 4 | . 3 4 Combat Bots Only 3 | . 3 3 Max Kills in Single Turn 2 | . 1 2 Gunslinging . | . . . Exploded 1 | . . 1 Melee . | . . . Uniques/NPCs Destroyed . | . . . Combat | -11 -10 -9 -------- Run | Jun Mat Mat Damage Taken 1456 | . 152 1304 Core 434 | . 34 400 Absorbed by Shields . | . . . Core Remaining (%) 93 | 100 86 . Volleys Fired 28 | . 8 20 Largest 2 | . 2 2 Hottest 126 | . 60 126 Shots Fired 46 | . 15 31 Gun 36 | . 15 21 Cannon . | . . . Launcher 10 | . . 10 Special . | . . . Kinetic 11 | . 8 3 Thermal 18 | . . 18 Explosive 10 | . . 10 Electromagnetic 7 | . 7 . Robot Hit Streak 6 | . 6 5 Robot Miss Streak 6 | . 1 6 Penetration Max . | . . . Secondary Targets 1 | . 1 . Max Gunslinging Chain 1 | . 1 . Shots Hit Robots 28 | . 12 16 Core Hits 19 | . 5 14 Critical Kills 1 | . 1 . Critical Parts Destroyed 1 | . . 1 Critical Strikes 3 | . 1 2 Burn 1 | . . 1 Destroy 2 | . 1 1 Melee Attacks . | . . . Impact . | . . . Slashing . | . . . Piercing . | . . . Sneak Attacks . | . . . Combat Hostiles . | . . . Follow-up Attacks . | . . . Damage Inflicted 945 | . 155 790 Guns 320 | . 155 165 Cannons . | . . . Explosions 620 | . . 620 Melee . | . . . Ramming 5 | . . 5 Kinetic 108 | . 98 10 Thermal 472 | . . 472 Explosive 303 | . . 303 Electromagnetic 57 | . 57 . Impact . | . . . Slashing . | . . . Piercing . | . . . Highest Corruption 4 | . . 4 Average Corruption 4 | . . 4 Corruption Purged . | . . . Corruption Blocked . | . . . Overload Shots . | . . . Overflow Damage 45 | . . 45 Projectiles . | . . . Explosions 45 | . . 45 Melee . | . . . Knockbacks . | . . . Impact . | . . . Kinetic . | . . . Secondary . | . . . Self-Inflicted Damage 5 | . . 5 Shots 1 | . . 1 Rammed 3 | . . 3 Targets Rammed 3 | . . 3 Kicked . | . . . Crushed . | . . . Highest Temperature 523 | . 72 523 Average Temperature 183 | . 41 228 Received Heat Transfer 429 | . 84 345 Effects 14 | . . 14 Shutdowns 5 | . . 5 Energy Bleed 4 | . . 4 Interference 2 | . . 2 Matter Decay 2 | . . 2 Damage (minor) 1 | . . 1 Siege Activations . | . . . Robots Corrupted . | . . . Combat Hostiles . | . . . Parts Fried . | . . . Impact Corruptions . | . . . Robots Melted . | . . . Combat Hostiles . | . . . Parts Melted 3 | . . 3 Heat Transferred 607 | . . 607 Parts Sabotaged . | . . . Parts Stolen . | . . . Parts Stripped . | . . . Power Chain Reactions . | . . . Missiles Intercepted . | . . . Alert | -11 -10 -9 ------- Run | Jun Mat Mat Peak Influence 200 | . 112 200 Initial 46 | . . 46 Average 71 | . 27 159 Maximum Alert Level 1 | . . 1 Low Security (%) 99 | 100 100 99 Level 1 . | . . . Level 2 . | . . . Level 3 . | . . . Level 4 . | . . . Level 5 . | . . . High Security . | . . . Max Security . | . . . Squads Dispatched 2 | . 1 1 Investigation 1 | . 1 . Extermination . | . . . Reinforcement 1 | . . 1 Assault . | . . . Garrison . | . . . Intercept . | . . . Searches Triggered . | . . . Construction Impeded . | . . . Haulers Reinforced . | . . . Active Scanning Responses . | . . . Cargo Convoy Interrupts . | . . . Stealth | -11 -10 -9 --------- Run | Jun Mat Mat Distress Signals 1 | . . 1 Communications Jammed . | . . . Distress Signals . | . . . Times Spotted 13 | . 6 7 Peak Tracking Total 4 | . 3 4 Tactical Retreats 1 | . 1 . Traps | -11 -10 -9 ------- Run | Jun Mat Mat Traps Triggered 2 | . 2 . Indirectly . | . . . Trap Hack Attempts . | . . . Triggered . | . . . Disarmed . | . . . Reprogrammed . | . . . Reused . | . . . Traps Extracted . | . . . Installed . | . . . Triggered . | . . . Machines | -11 -10 -9 ---------- Run | Jun Mat Mat Machines Disabled 3 | . . 3 Max in Single Turn 3 | . . 3 Machines Repaired . | . . . Machines Sabotaged . | . . . Overloaded Fab Kills . | . . . Hacking | -11 -10 -9 --------- Run | Jun Mat Mat Machines Accessed 2 | . 2 . Terminals 2 | . 2 . Fabricators . | . . . Repair Stations . | . . . Recycling Units . | . . . Scanalyzers . | . . . Garrison Access . | . . . Total Hacks 4 | . 4 . Successful 2 | . 2 . Failed 2 | . 2 . Catastrophic . | . . . Database Lockouts . | . . . Manual . | . . . Terminals 4 | . 4 . Fabricators . | . . . Repair Stations . | . . . Recycling Units . | . . . Scanalyzers . | . . . Garrison Access . | . . . Terminal Hacks 2 | . 2 . Branch Access Points 1 | . 1 . Alert Level 1 | . 1 . Fabricator Hacks . | . . . Repair Station Hacks . | . . . Recycling Unit Hacks . | . . . Scanalyzer . | . . . Garrison Access Hacks . | . . . Unauthorized Hacks . | . . . Terminals . | . . . Fabricators . | . . . Repair Stations . | . . . Recycling Units . | . . . Scanalyzers . | . . . Garrison Access . | . . . Data Cores Recovered . | . . . Used . | . . . Hacking Detections 1 | . 1 . Full Trace Events . | . . . Feedback Events . | . . . Feedback Blocked . | . . . Robot Schematics Acquired . | . . . Robots Built . | . . . Authchips . | . . . Time . | . . . Total Robot Build Rating . | . . . Part Schematics Acquired . | . . . Parts Built . | . . . Authchips . | . . . Time . | . . . Total Part Build Rating . | . . . Parts Repaired . | . . . Time . | . . . Parts Recycled . | . . . Recycled Matter . | . . . Retrieved Matter . | . . . Retrieved Components . | . . . Parts Scanalyzed . | . . . Part Schematics Acquired . | . . . Parts Damaged . | . . . Bothacking | -11 -10 -9 ------------ Run | Jun Mat Mat Used RIF Installer . | . . . Robots Hacked . | . . . Non-combat . | . . . Combat . | . . . Robot Hacks Applied . | . . . Relay Couplers Released . | . . . Fabnet Peak Effective % . | . . . Robots Rewired . | . . . Allies Hacked . | . . . Hacks Repelled . | . . . Allies | -11 -10 -9 -------- Run | Jun Mat Mat Total Allies . | . . . Largest Group . | . . . Highest-Rated Group . | . . . Highest-Rated Ally . | . . . Total Orders . | . . . Ally Attacks . | . . . Total Damage . | . . . Kills . | . . . Allies Corrupted . | . . . Allies Melted . | . . . Intel | -11 -10 -9 ------- Run | Jun Mat Mat Robot Analysis Total . | . . . Derelict Logs Recovered . | . . . Drone Launches . | . . . Drone Recoveries . | . . . Exploration | -11 -10 -9 ------------- Run | Jun Mat Mat Turns Passed 593 | 82 294 217 Spaces Moved 303 | 48 200 55 Core 32 | 28 . 4 Treads . | . . . Legs 271 | 20 200 51 Wheels . | . . . Hover . | . . . Flight . | . . . Fastest Speed 50 | 50 120 190 Average Speed 145 | 138 121 237 Slowest Speed 750 | 200 260 750 Overloaded Moves . | . . . Propulsion Burnouts . | . . . Robots Hopped . | . . . Cave-ins Triggered 1 | . . 1 Exploration Rate (%) 16 | 5 34 9 Regions Visited 2 Branch Regions . Pre-discovered Areas . | . . . Known Exits Taken . | . . . Unknown Exits Taken 2 | 1 1 . Scrap Searched . | . . . Spaces Dug . | . . . Terrain Destroyed 41 | . . 41 Melee . | . . . Projectile . | . . . AOE 41 | . . 41 Terrain Rammed . | . . . Walls Destroyed . | . . . Machines Disabled . | . . . Actions | -11 -10 -9 --------- Run | Jun Mat Mat Total 390 | 63 236 91 Wait 13 | . 13 . Move 301 | 47 199 55 Hop . | . . . Pick Up 21 | 10 8 3 Fast Attach . | . . . Attach 14 | 6 4 4 Detach . | . . . Swap 9 | . 3 6 Drop 1 | . 1 . Fire 28 | . 8 20 Melee . | . . . Ram 3 | . . 3 Kick . | . . . Crush . | . . . Escape Stasis . | . . . Rewire . | . . . Trap . | . . . Miscellaneous . | . . . Route ------- -11/Junkyard -10/Materials (discovered 3 exits: [*Mat] / *Min x2) -9/Materials History --------- Turn | Location | Event 33 | -11/Junkyard | Discovered new exit (range 16) 83 | -11/Junkyard | Entered Materials 116 | -10/Materials | Discovered new exit (range 15) 143 | -10/Materials | Identified exit to Mines 278 | -10/Materials | Discovered new exit (range 15) 312 | -10/Materials | Build established: Mutant 377 | -10/Materials | Entered another Materials area 377 | -9/Materials | Evolved 2 slots: Power x1, Propulsion x1 518 | -9/Materials | Crushed by falling debris 550 | -9/Materials | Core integrity fell below 50% 580 | -9/Materials | Core integrity fell below 20% 594 | -9/Materials | Destroyed by Y-45 Defender with Heavy Assault Rifle Last Messages --------------- 00575_ Destabilizing: System interference. 00575_ Assault Rifle temporarily disabled. 00576_ U-05 Engineer lays Concrete. 00578_ K-01 Serf collects debris. 00578_ U-05 Engineer lays Concrete. 00579_ Assault Rifle destroyed. 00579_ U-05 Engineer lays Concrete. 00581_ K-01 Serf collects debris. 00582_ Slammed into Y-45 Defender. 00582_ U-05 Engineer lays Concrete. 00585_ K-01 Serf collects debris. 00585_ U-05 Engineer lays Concrete. 00588_ K-01 Serf collects debris. 00588_ U-05 Engineer lays Concrete. 00589_ Slammed into Y-45 Defender. 00590_ U-05 Engineer lays Concrete. 00592_ K-01 Serf collects debris. 00592_ U-05 Engineer lays Concrete. 00592_ K-01 Serf collects debris. 00594_ U-05 Engineer lays Concrete. Map ----- +----------------------------------------------------+ | ???????????????????????????????????????????? | | ???????????????????????????????????????????? | | ???????????????????????????????????????????? | | ???????????????????????????????????????????? | | ???????????????????????????????????????????? | | ???????????????????????????????????????????? | | ???????????????????????????????????????????? | | ???????????????????????????????????????????? | | ???????????????????????????????????????????? | | ???????????????????????????????????????????? | | ???????????????????????????????????????????? | | ???????????????????????????????????????????? | | ???????? ?????????????????????????????????? | | ???????? ?###+###???##???????????????????? | | ????????? # ??? ????????????????????? | | ?????????? # ! #??#+##??????????????????? | | ??????????? ; #?? #??????????????????? | | ????????????# #? #??????????????????? | | ????????????# #? #??????????????????? | | ?????????????# ## t #??????????????????? | | ?????????????# ###????????????????? | | ?????????????# % /###########?????????? | | ???????????### # kr ????????? | | ?????????#?# ; ????????? | | ?????????# # # ????????? | | ?????????# # ; @Y r ????????? | | ??????????#; ; ????????? | | ??????????## ; u ????????? | | ??????????# ?????????? | | ??????????## ##########?????????? | | ???????????# #??????????????????? | | ???????????# #??????????????????? | | ???????????# #??????????????????? | | ???????????# # #??????????????????? | | ???????????# #??????????????????? | | ???????????# k #??????????????????? | | ???????????# #??????????????????? | | ?????????#### #??????????????????? | | ?????????#!! #??????????????????? | | ?????????#!! #??????????????????? | | ?????????#[ #??????????????????? | | ?????????#[ #??????????????????? | | ?????????#!! #??????????????????? | | ?????????#!! # #??????????????????? | | ?????????##### # #??????????????????? | | ?????????????# #! !#??????????????????? | | ?????????????# ##!! !##??????????????????? | | ?????????????# #######???????????????????? | | ?????????????# #?????????????????????????? | | ?????????????# #?????????????????????????? | +----------------------------------------------------+ Best States ------------- Heat Dissipation 28 Energy Generation 15 Energy Capacity 275 Matter Stores 299 Matter Capacity 300 Sight Range 16 Robot Scan Range 14 Terrain Scan Density 10 Evasion (%) 55 Item Schematics ----------------- None Robot Schematics ------------------ None Fabricated ------------ Nothing Alien Tech Used ----------------- None Achievements -------------- Oops Unlikely Earthworm Challenges ------------ None Game ------ Seed LightpackSwordSheargun Manual? 0 Play Time 00:14:45 Cumulative 2.8 hours Start 2023.10.31 @ 11:46:36 End 2023.10.31 @ 12:11:15 Sessions 1 Manual Loads 0 Difficulty Rogue Special Mode None Game No. 9 Rogue 9 Adventurer 0 Explorer 0 Win Type - Total 0 Types 0/0/0/0/0/0/0/0/0 Lore% 6 Gallery% 7 Achievement% 9 Wizard Run 0 Options --------- ASCII 0 Keyboard 0 Movement Mouse Keybinds 0 Fullscreen 2 Font 24/Crisp Map View 76x50 Tactical HUD 1 Map Filters NONE Filters NONE Steam 1 RUN: 98d904c7-b148-4086-b669-49730952c7bd